fUST/lending_fUST_20251213
["ID","MTS","AMOUNT","RATE_DAILY","PERIOD"]
[398374855,1765559363777,-500.0,0.00044657,120]
[398374857,1765559363830,-500.0,0.00044657,120]
[398374859,1765559363882,-2274.16,0.00044657,120]
[398374861,1765559363934,-601.53,0.00044657,120]
[398374862,1765559363991,-500.0,0.00044657,120]
[398374864,1765559364047,-700.93,0.00044657,120]
[398374866,1765559364102,-500.0,0.00044657,120]
[398374867,1765559364160,-718.61,0.00044657,120]
[398374868,1765559364219,-500.0,0.00044657,120]
[398374869,1765559364275,-519.85677175,0.00044657,120]
[398374871,1765559364329,-1244.67,0.00044931,120]
[398374873,1765559364388,-517.94,0.00044931,120]
[398374874,1765559364445,-500.0,0.00044931,30]
[398374876,1765559364499,-500.0,0.00044931,120]
[398374878,1765559364554,-500.0,0.00044931,120]
[398374880,1765559364607,-1075.08,0.00044931,120]
[398374882,1765559364669,-798.8,0.00044931,120]
[398374883,1765559364724,-1542.86,0.00044931,120]
[398374885,1765559364777,-1289.7,0.00044931,120]
[398374887,1765559364828,-500.0,0.00044931,120]
[398374889,1765559364878,-1597.54,0.00044931,120]
[398374891,1765559364927,-785.59,0.00044931,120]
[398374892,1765559364976,-500.0,0.00044931,120]
[398374894,1765559365028,-1700.73,0.00044931,120]
[398374896,1765559365079,-998.48,0.00044931,120]
[398374898,1765559365128,-500.0,0.00044931,120]
[398374900,1765559365176,-897.6,0.00044931,120]
[398374901,1765559365228,-664.6,0.00044931,120]
[398374903,1765559365284,-500.0,0.00044931,120]
[398374905,1765559365338,-500.0,0.00044931,120]
[398374907,1765559365393,-2274.16,0.00044931,120]
[398374909,1765559365444,-601.53,0.00044931,120]
[398374911,1765559365493,-390.50570591,0.00044931,120]
[398374912,1765559365544,-700.93,0.00044931,120]
[398374914,1765559365597,-500.0,0.00044931,120]
[398374916,1765559365646,-718.61,0.00044931,120]
[398374918,1765559365696,-500.0,0.00044931,120]
[398374919,1765559365743,-524.01,0.00045205,120]
[398374921,1765559365794,-1244.67,0.00045205,120]
[398374923,1765559365845,-517.94,0.00045205,120]
[398374925,1765559365894,-500.0,0.00045205,30]
[398374927,1765559365953,-500.0,0.00045205,120]
[398374929,1765559366000,-500.0,0.00045205,120]
[398374930,1765559366046,-1075.08,0.00045205,120]
[398374932,1765559366096,-798.8,0.00045205,120]
[398374934,1765559366144,-1542.86,0.00045205,120]
[398374936,1765559366192,-1289.7,0.00045205,120]
[398374938,1765559366240,-500.0,0.00045205,120]
[398374939,1765559366288,-1597.54,0.00045205,120]
[398374941,1765559366340,-785.59,0.00045205,120]
[398374943,1765559366392,-500.0,0.00045205,120]
[398374945,1765559366441,-1700.73,0.00045205,120]
[398374946,1765559366488,-998.48,0.00045205,120]
[398374948,1765559366537,-500.0,0.00045205,120]
[398374950,1765559366586,-897.6,0.00045205,120]
[398374952,1765559366635,-664.6,0.00045205,120]
[398374954,1765559366683,-500.0,0.00045205,120]
[398374955,1765559366730,-500.0,0.00045205,120]
[398374957,1765559366780,-2274.16,0.00045205,120]
[398374959,1765559366827,-601.53,0.00045205,120]
[398374961,1765559366878,-700.93,0.00045205,120]
[398374963,1765559366930,-320.17874776,0.00045205,120]
[398374965,1765559366985,-718.61,0.00045205,120]
[398374966,1765559367036,-500.0,0.00045205,120]
[398374968,1765559367086,-337.0,0.00045308,90]
[398374970,1765559367140,-250.0,0.00045478,120]
[398374971,1765559367191,-250.0,0.00045478,120]
[398374973,1765559367243,-250.0,0.00045478,120]
[398374975,1765559367292,-250.0,0.00045478,120]
[398374976,1765559367340,-250.0,0.00045478,120]
[398374978,1765559367395,-250.0,0.00045478,120]
[398374980,1765559367451,-250.0,0.00045478,120]
[398374982,1765559367503,-250.0,0.00045478,120]
[398374984,1765559367551,-250.0,0.00045478,120]
[398374985,1765559367598,-250.0,0.00045478,120]
[398374987,1765559367653,-250.0,0.00045478,120]
[398374989,1765559367704,-250.0,0.00045478,120]
[398374991,1765559367752,-250.0,0.00045478,120]
[398374993,1765559367795,-250.0,0.00045478,120]
[398374994,1765559367842,-250.0,0.00045478,120]
[398374996,1765559367894,-250.0,0.00045478,120]
[398374998,1765559367944,-524.01,0.00045479,120]
[398375000,1765559367991,-1244.67,0.00045479,120]
[398375001,1765559368036,-517.94,0.00045479,120]
[398375003,1765559368088,-500.0,0.00045479,30]
[398375005,1765559368138,-500.0,0.00045479,120]
[398375007,1765559368190,-500.0,0.00045479,120]
[398375009,1765559368243,-1075.08,0.00045479,120]
[398375010,1765559368291,-798.8,0.00045479,120]
[398375014,1765559368481,-1542.86,0.00045479,120]
[398375016,1765559368534,-1289.7,0.00045479,120]
[398375018,1765559368585,-500.0,0.00045479,120]
[398375020,1765559368634,-1597.54,0.00045479,120]
[398375021,1765559368680,-785.59,0.00045479,120]
[398375023,1765559368731,-500.0,0.00045479,120]
[398375025,1765559368781,-1700.73,0.00045479,120]
[398375027,1765559368829,-998.48,0.00045479,120]
[398375029,1765559368877,-500.0,0.00045479,120]
[398375030,1765559368921,-897.6,0.00045479,120]
[398375032,1765559368971,-664.6,0.00045479,120]
[398375034,1765559369020,-500.0,0.00045479,120]
[398375036,1765559369071,-500.0,0.00045479,120]
[398375038,1765559369122,-2274.16,0.00045479,120]
[398375039,1765559369171,-601.53,0.00045479,120]
[398375041,1765559369223,-700.93,0.00045479,120]
[398375043,1765559369272,-718.61,0.00045479,120]
[398375045,1765559369327,-500.0,0.00045479,120]
[398375046,1765559369382,-524.01,0.00045753,120]
[398375048,1765559369435,-1244.67,0.00045753,120]
[398375050,1765559369486,-517.94,0.00045753,120]
[398375052,1765559369535,-232.04103367,0.00045753,30]
[398375053,1765559369584,-500.0,0.00045753,120]
[398375055,1765559369637,-620.96874291,0.00045753,120]
[398375057,1765559369690,-1075.08,0.00045753,120]
[398375059,1765559369739,-798.8,0.00045753,120]
[398375061,1765559369786,-1542.86,0.00045753,120]
[398375062,1765559369837,-1289.7,0.00045753,120]
[398375064,1765559369896,-500.0,0.00045753,120]
[398375066,1765559369950,-1597.54,0.00045753,120]
[398375068,1765559370003,-785.59,0.00045753,120]
[398375070,1765559370056,-500.0,0.00045753,120]
[398375071,1765559370109,-1700.73,0.00045753,120]
[398375073,1765559370164,-998.48,0.00045753,120]
[398375075,1765559370218,-500.0,0.00045753,120]
[398375077,1765559370276,-897.6,0.00045753,120]
[398375079,1765559370336,-664.6,0.00045753,120]
[398375080,1765559370390,-500.0,0.00045753,120]
[398375082,1765559370447,-500.0,0.00045753,120]
[398375083,1765559370506,-2274.16,0.00045753,120]
[398375084,1765559370568,-601.53,0.00045753,120]
[398375085,1765559370627,-700.93,0.00045753,120]
[398375086,1765559370682,-718.61,0.00045753,120]
[398375087,1765559370738,-500.0,0.00045753,120]
[398375088,1765559370790,-1115.6724688,0.00046027,120]
[398375090,1765559370844,-502.64,0.00046027,120]
[398375092,1765559370896,-524.01,0.00046027,120]
[398375094,1765559370955,-517.94,0.00046027,120]
[398375096,1765559371010,-1244.67,0.00046027,120]
[398375098,1765559371061,-500.0,0.00046027,120]
[398375099,1765559371109,-1075.08,0.00046027,120]
[398375101,1765559371164,-798.8,0.00046027,120]
[398375103,1765559371219,-1542.86,0.00046027,120]
[398375105,1765559371273,-1289.7,0.00046027,120]
[398375107,1765559371322,-500.0,0.00046027,120]
[398375108,1765559371373,-1597.54,0.00046027,120]
[398375110,1765559371430,-785.59,0.00046027,120]
[398375112,1765559371483,-500.0,0.00046027,120]
[398375114,1765559371536,-1700.73,0.00046027,120]
[398375116,1765559371588,-998.48,0.00046027,120]
[398375117,1765559371641,-500.0,0.00046027,120]
[398375119,1765559371697,-897.6,0.00046027,120]
[398375121,1765559371745,-664.6,0.00046027,120]
[398375123,1765559371791,-500.0,0.00046027,120]
[398375125,1765559371836,-2274.16,0.00046027,120]
[398375126,1765559371883,-500.0,0.00046027,120]
[398375128,1765559371932,-601.53,0.00046027,120]
[398375130,1765559371984,-700.93,0.00046027,120]
[398375132,1765559372035,-718.61,0.00046027,120]
[398375133,1765559372089,-500.0,0.00046027,120]
[398375135,1765559372142,-500.0,0.00046301,120]
[398375137,1765559372193,-6062.91,0.00046301,120]
[398375139,1765559372243,-605.78,0.00046301,120]
[398375140,1765559372294,-786.96,0.00046301,120]
[398375142,1765559372349,-500.0,0.00046301,120]
[398375144,1765559372404,-568.22,0.00046301,120]
[398375146,1765559372455,-500.0,0.00046301,120]
[398375148,1765559372504,-1644.61,0.00046301,120]
[398375149,1765559372553,-1226.93,0.00046301,120]
[398375151,1765559372605,-1439.87,0.00046301,120]
[398375153,1765559372656,-838.88,0.00046301,120]
[398375155,1765559372704,-557.55,0.00046301,120]
[398375156,1765559372752,-571.36,0.00046301,120]
[398375158,1765559372808,-612.73,0.00046301,120]
[398375160,1765559372862,-284.43,0.00046301,120]
[398375162,1765559372922,-500.0,0.00046301,120]
[398375164,1765559372975,-503.52,0.00046301,120]
[398375165,1765559373026,-500.0,0.00046301,120]
[398375167,1765559373083,-500.0,0.00046301,120]
[398375169,1765559373141,-656.63,0.00046301,120]
[398375171,1765559373198,-540.31,0.00046301,120]
[398375173,1765559373253,-612.94,0.00046301,120]
[398375174,1765559373305,-1370.61,0.00046301,120]
[398375176,1765559373362,-500.0,0.00046301,120]
[398375180,1765559373565,-1540.11,0.00046301,120]
[398375182,1765559373635,-517.69,0.00046301,120]
[398375184,1765559373703,-642.33,0.00046301,120]
[398375186,1765559373756,-1295.86,0.00046301,120]
[398375188,1765559373810,-821.88,0.00046301,120]
[398375189,1765559373872,-757.37,0.00046301,120]
[398375191,1765559373934,-878.07,0.00046301,120]
[398375193,1765559373994,-633.82,0.00046301,120]
[398375195,1765559374050,-597.47,0.00046301,120]
[398375196,1765559374102,-1143.61,0.00046301,120]
[398375198,1765559374161,-3129.74,0.00046301,120]
[398375200,1765559374219,-3783.5,0.00046301,120]
[398375202,1765559374274,-10320.71,0.00046301,120]
[398375204,1765559374330,-1523.65,0.00046301,120]
[398375205,1765559374383,-830.76,0.00046301,120]
[398375207,1765559374437,-1671.52,0.00046301,120]
[398375209,1765559374492,-1681.97,0.00046301,120]
[398375211,1765559374546,-2139.91,0.00046301,120]
[398375213,1765559374599,-2298.72,0.00046301,120]
[398375214,1765559374650,-1481.27,0.00046301,120]
[398375216,1765559374702,-500.0,0.00046301,120]
[398375218,1765559374755,-1875.89,0.00046301,120]
[398375220,1765559374805,-672.23,0.00046301,120]
[398375222,1765559374854,-500.0,0.00046301,120]
[398375223,1765559374903,-558.94,0.00046301,120]
[398375225,1765559374957,-1234.93,0.00046301,120]
[398375227,1765559375012,-362.21139319,0.00046301,60]
[398375229,1765559375069,-1641.36,0.00046301,120]
[398375231,1765559375117,-500.0,0.00046301,120]
[398375232,1765559375172,-1642.86,0.00046301,120]
[398375234,1765559375229,-16052.6,0.00046301,120]
[398375236,1765559375282,-513.05,0.00046301,60]
[398375238,1765559375334,-1350.51,0.00046301,120]
[398375240,1765559375397,-615.38,0.00046301,120]
[398375241,1765559375454,-1014.18,0.00046301,120]
[398375243,1765559375510,-731.22,0.00046301,120]
[398375245,1765559375562,-1750.24,0.00046301,120]
[398375247,1765559375614,-2037.28,0.00046301,120]
[398375248,1765559375664,-628.99,0.00046301,120]
[398375250,1765559375719,-3597.56,0.00046301,120]
[398375252,1765559375772,-502.64,0.00046301,120]
[398375254,1765559375823,-524.01,0.00046301,120]
[398375256,1765559375878,-517.94,0.00046301,120]
[398375257,1765559375933,-1244.67,0.00046301,120]
[398375259,1765559375991,-538.66972462,0.00046301,120]
[398375261,1765559376051,-1075.08,0.00046301,120]
[398375263,1765559376108,-798.8,0.00046301,120]
[398375265,1765559376163,-1542.86,0.00046301,120]
[398375267,1765559376215,-1289.7,0.00046301,120]
[398375268,1765559376266,-500.0,0.00046301,120]
[398375270,1765559376321,-1597.54,0.00046301,120]
[398375272,1765559376374,-785.59,0.00046301,120]
[398375274,1765559376431,-500.0,0.00046301,120]
[398375276,1765559376479,-1700.73,0.00046301,120]
[398375277,1765559376528,-998.48,0.00046301,120]
[398375279,1765559376580,-500.0,0.00046301,120]
[398375281,1765559376631,-897.6,0.00046301,120]
[398375283,1765559376684,-664.6,0.00046301,120]
[398375285,1765559376733,-635.85437648,0.00046301,120]
[398375286,1765559376784,-500.0,0.00046301,120]
[398375288,1765559376835,-2274.16,0.00046301,120]
[398375290,1765559376884,-601.53,0.00046301,120]
[398375291,1765559376932,-700.93,0.00046301,120]
[398375293,1765559376985,-718.61,0.00046301,120]
[398375295,1765559377035,-416.70286627,0.00046301,120]
[398375297,1765559377090,-200.0,0.00046558,120]
[398375298,1765559377143,-6062.91,0.00046575,120]
[398375300,1765559377198,-605.78,0.00046575,120]
[398375301,1765559377253,-786.96,0.00046575,120]
[398375302,1765559377306,-500.0,0.00046575,120]
[398375303,1765559377361,-568.22,0.00046575,120]
[398375304,1765559377416,-500.0,0.00046575,120]
[398375305,1765559377473,-1644.61,0.00046575,120]
[398375307,1765559377526,-1226.93,0.00046575,120]
[398375309,1765559377575,-1439.87,0.00046575,120]
[398375310,1765559377627,-838.88,0.00046575,120]
[398375312,1765559377680,-557.55,0.00046575,120]
[398375314,1765559377730,-571.36,0.00046575,120]
[398375316,1765559377779,-612.73,0.00046575,120]
[398375318,1765559377825,-284.43,0.00046575,120]
[398375319,1765559377879,-500.0,0.00046575,120]
[398375321,1765559377931,-503.52,0.00046575,120]
[398375323,1765559377985,-500.0,0.00046575,120]
[398375325,1765559378037,-500.0,0.00046575,120]
[398375327,1765559378090,-656.63,0.00046575,120]
[398375328,1765559378141,-540.31,0.00046575,120]
[398375330,1765559378198,-612.94,0.00046575,120]
[398375332,1765559378250,-1370.61,0.00046575,120]
[398375334,1765559378303,-482.02936398,0.00046575,120]
[398375336,1765559378357,-1540.11,0.00046575,120]
[398375337,1765559378410,-517.69,0.00046575,120]
[398375339,1765559378465,-642.33,0.00046575,120]
[398375341,1765559378518,-1295.86,0.00046575,120]
[398375343,1765559378570,-821.88,0.00046575,120]
[398375345,1765559378619,-757.37,0.00046575,120]
[398375348,1765559378816,-878.07,0.00046575,120]
[398375350,1765559378884,-633.82,0.00046575,120]
[398375352,1765559378947,-597.47,0.00046575,120]
[398375354,1765559379009,-1143.61,0.00046575,120]
[398375356,1765559379066,-3129.74,0.00046575,120]
[398375358,1765559379125,-3783.5,0.00046575,120]
[398375360,1765559379185,-10320.71,0.00046575,120]
[398375362,1765559379238,-1523.65,0.00046575,120]
[398375363,1765559379291,-830.76,0.00046575,120]
[398375365,1765559379352,-1671.52,0.00046575,120]
[398375367,1765559379412,-1681.97,0.00046575,120]
[398375369,1765559379469,-2139.91,0.00046575,120]
[398375371,1765559379537,-2298.72,0.00046575,120]
[398375373,1765559379594,-1481.27,0.00046575,120]
[398375375,1765559379645,-384.95334045,0.00046575,120]
[398375377,1765559379697,-1875.89,0.00046575,120]
[398375378,1765559379745,-672.23,0.00046575,120]
[398375380,1765559379797,-500.0,0.00046575,120]
[398375382,1765559379847,-558.94,0.00046575,120]
[398375384,1765559379901,-1234.93,0.00046575,120]
[398375386,1765559379960,-362.21139319,0.00046575,60]
[398375387,1765559380020,-1641.36,0.00046575,120]
[398375389,1765559380076,-500.0,0.00046575,120]
[398375391,1765559380134,-1642.86,0.00046575,120]
[398375393,1765559380197,-16052.6,0.00046575,120]
[398375395,1765559380251,-513.05,0.00046575,60]
[398375396,1765559380304,-1350.51,0.00046575,120]
[398375398,1765559380362,-615.38,0.00046575,120]
[398375400,1765559380415,-1014.18,0.00046575,120]
[398375402,1765559380471,-731.22,0.00046575,120]
[398375404,1765559380533,-1750.24,0.00046575,120]
[398375405,1765559380586,-2037.28,0.00046575,120]
[398375407,1765559380645,-628.99,0.00046575,120]
[398375409,1765559380704,-3597.56,0.00046575,120]
[398375411,1765559380759,-502.64,0.00046575,120]
[398375413,1765559380813,-524.01,0.00046575,120]
[398375414,1765559380862,-517.94,0.00046575,120]
[398375416,1765559380918,-1244.67,0.00046575,120]
[398375418,1765559380969,-1075.08,0.00046575,120]
[398375420,1765559381028,-798.8,0.00046575,120]
[398375421,1765559381083,-1542.86,0.00046575,120]
[398375423,1765559381139,-1289.7,0.00046575,120]
[398375425,1765559381200,-500.0,0.00046575,120]
[398375427,1765559381254,-1597.54,0.00046575,120]
[398375429,1765559381305,-785.59,0.00046575,120]
[398375431,1765559381359,-500.0,0.00046575,120]
[398375433,1765559381408,-1700.73,0.00046575,120]
[398375434,1765559381464,-998.48,0.00046575,120]
[398375436,1765559381524,-500.0,0.00046575,120]
[398375438,1765559381587,-897.6,0.00046575,120]
[398375440,1765559381644,-664.6,0.00046575,120]
[398375442,1765559381696,-195.06755918,0.00046575,120]
[398375444,1765559381742,-2274.16,0.00046575,120]
[398375446,1765559381787,-601.53,0.00046575,120]
[398375447,1765559381833,-700.93,0.00046575,120]
[398375449,1765559381883,-718.61,0.00046575,120]
[398375451,1765559381930,-2933.8310146,0.000468,120]
[398375453,1765559381979,-500.0,0.00046849,120]
[398375454,1765559382027,-6062.91,0.00046849,120]
[398375456,1765559382077,-605.78,0.00046849,120]
[398375458,1765559382128,-786.96,0.00046849,120]
[398375460,1765559382176,-500.0,0.00046849,120]
[398375462,1765559382222,-568.22,0.00046849,120]
[398375463,1765559382271,-321.76662367,0.00046849,120]
[398375465,1765559382321,-1644.61,0.00046849,120]
[398375467,1765559382370,-1226.93,0.00046849,120]
[398375469,1765559382417,-1439.87,0.00046849,120]
[398375470,1765559382467,-838.88,0.00046849,120]
[398375472,1765559382521,-557.55,0.00046849,120]
[398375474,1765559382573,-571.36,0.00046849,120]
[398375476,1765559382626,-612.73,0.00046849,120]
[398375478,1765559382677,-284.43,0.00046849,120]
[398375480,1765559382725,-499.65271669,0.00046849,120]
[398375481,1765559382774,-503.52,0.00046849,120]
[398375483,1765559382824,-500.0,0.00046849,120]
[398375485,1765559382873,-247.30902951,0.00046849,120]
[398375487,1765559382924,-656.63,0.00046849,120]
[398375489,1765559382974,-540.31,0.00046849,120]
[398375490,1765559383024,-612.94,0.00046849,120]
[398375492,1765559383078,-1370.61,0.00046849,120]
[398375494,1765559383133,-1540.11,0.00046849,120]
[398375496,1765559383187,-517.69,0.00046849,120]
[398375498,1765559383240,-642.33,0.00046849,120]
[398375499,1765559383292,-1295.86,0.00046849,120]
[398375501,1765559383345,-821.88,0.00046849,120]
[398375503,1765559383399,-757.37,0.00046849,120]
[398375505,1765559383454,-878.07,0.00046849,120]
[398375507,1765559383506,-633.82,0.00046849,120]
[398375508,1765559383555,-597.47,0.00046849,120]
[398375510,1765559383607,-1143.61,0.00046849,120]
[398375512,1765559383660,-3129.74,0.00046849,120]
[398375514,1765559383710,-3783.5,0.00046849,120]
[398375515,1765559383765,-10320.71,0.00046849,120]
[398375516,1765559383816,-1523.65,0.00046849,120]
[398375517,1765559383868,-830.76,0.00046849,120]
[398375520,1765559384063,-1671.52,0.00046849,120]
[398375522,1765559384118,-1681.97,0.00046849,120]
[398375524,1765559384176,-2139.91,0.00046849,120]
[398375526,1765559384231,-2298.72,0.00046849,120]
[398375528,1765559384282,-1481.27,0.00046849,120]
[398375530,1765559384343,-1875.89,0.00046849,120]
[398375531,1765559384404,-672.23,0.00046849,120]
[398375533,1765559384459,-500.0,0.00046849,120]
[398375535,1765559384515,-558.94,0.00046849,120]
[398375537,1765559384570,-1234.93,0.00046849,120]
[398375539,1765559384624,-362.21139319,0.00046849,60]
[398375541,1765559384685,-1641.36,0.00046849,120]
[398375542,1765559384732,-325.95646911,0.00046849,120]
[398375544,1765559384782,-1642.86,0.00046849,120]
[398375546,1765559384837,-16052.6,0.00046849,120]
[398375548,1765559384888,-513.05,0.00046849,60]
[398375550,1765559384938,-1350.51,0.00046849,120]
[398375551,1765559384993,-615.38,0.00046849,120]
[398375553,1765559385049,-1014.18,0.00046849,120]
[398375555,1765559385100,-731.22,0.00046849,120]
[398375556,1765559385155,-1750.24,0.00046849,120]
[398375558,1765559385220,-2037.28,0.00046849,120]
[398375560,1765559385291,-628.99,0.00046849,120]
[398375562,1765559385353,-3597.56,0.00046849,120]
[398375564,1765559385410,-502.64,0.00046849,120]
[398375566,1765559385461,-524.01,0.00046849,120]
[398375567,1765559385508,-517.94,0.00046849,120]
[398375569,1765559385564,-1244.67,0.00046849,120]
[398375571,1765559385620,-1075.08,0.00046849,120]
[398375573,1765559385672,-798.8,0.00046849,120]
[398375574,1765559385717,-1542.86,0.00046849,120]
[398375576,1765559385765,-1289.7,0.00046849,120]
[398375578,1765559385810,-500.0,0.00046849,120]
[398375580,1765559385854,-1597.54,0.00046849,120]
[398375581,1765559385899,-785.59,0.00046849,120]
[398375583,1765559385953,-500.0,0.00046849,120]
[398375585,1765559386005,-1700.73,0.00046849,120]
[398375587,1765559386057,-998.48,0.00046849,120]
[398375588,1765559386107,-500.0,0.00046849,120]
[398375590,1765559386161,-897.6,0.00046849,120]
[398375592,1765559386214,-664.6,0.00046849,120]
[398375594,1765559386264,-2274.16,0.00046849,120]
[398375596,1765559386313,-601.53,0.00046849,120]
[398375597,1765559386370,-700.93,0.00046849,120]
[398375599,1765559386427,-718.61,0.00046849,120]
[398375601,1765559386481,-150.0317616,0.000469,120]
[398375603,1765559386528,-7989.099,0.00047,120]
[398375605,1765559386577,-6062.91,0.00047123,120]
[398375606,1765559386627,-605.78,0.00047123,120]
[398375608,1765559386676,-786.96,0.00047123,120]
[398375610,1765559386723,-355.45196317,0.00047123,120]
[398375612,1765559386770,-568.22,0.00047123,120]
[398375614,1765559386816,-1644.61,0.00047123,120]
[398375615,1765559386866,-1226.93,0.00047123,120]
[398375617,1765559386919,-1439.87,0.00047123,120]
[398375619,1765559386966,-838.88,0.00047123,120]
[398375621,1765559387014,-557.55,0.00047123,120]
[398375622,1765559387061,-571.36,0.00047123,120]
[398375624,1765559387112,-612.73,0.00047123,120]
[398375626,1765559387165,-284.43,0.00047123,120]
[398375628,1765559387214,-503.52,0.00047123,120]
[398375630,1765559387260,-185.80696735,0.00047123,120]
[398375631,1765559387308,-656.63,0.00047123,120]
[398375633,1765559387358,-540.31,0.00047123,120]
[398375635,1765559387406,-612.94,0.00047123,120]
[398375637,1765559387456,-1370.61,0.00047123,120]
[398375638,1765559387509,-1540.11,0.00047123,120]
[398375640,1765559387563,-517.69,0.00047123,120]
[398375642,1765559387618,-642.33,0.00047123,120]
[398375644,1765559387672,-1295.86,0.00047123,120]
[398375645,1765559387719,-821.88,0.00047123,120]
[398375647,1765559387770,-757.37,0.00047123,120]
[398375649,1765559387819,-878.07,0.00047123,120]
[398375651,1765559387868,-633.82,0.00047123,120]
[398375653,1765559387922,-597.47,0.00047123,120]
[398375654,1765559387976,-1143.61,0.00047123,120]
[398375656,1765559388033,-3129.74,0.00047123,120]
[398375658,1765559388089,-3783.5,0.00047123,120]
[398375660,1765559388145,-10320.71,0.00047123,120]
[398375662,1765559388199,-1523.65,0.00047123,120]
[398375663,1765559388249,-830.76,0.00047123,120]
[398375665,1765559388300,-1671.52,0.00047123,120]
[398375667,1765559388354,-1681.97,0.00047123,120]
[398375669,1765559388404,-2139.91,0.00047123,120]
[398375670,1765559388455,-2298.72,0.00047123,120]
[398375672,1765559388511,-1481.27,0.00047123,120]
[398375674,1765559388565,-1875.89,0.00047123,120]
[398375676,1765559388614,-672.23,0.00047123,120]
[398375678,1765559388663,-500.0,0.00047123,120]
[398375679,1765559388713,-558.94,0.00047123,120]
[398375681,1765559388764,-1234.93,0.00047123,120]
[398375683,1765559388810,-362.21139319,0.00047123,60]
[398375685,1765559388858,-1641.36,0.00047123,120]
[398375686,1765559388908,-1642.86,0.00047123,120]
[398375688,1765559388963,-16052.6,0.00047123,120]
[398375692,1765559389159,-513.05,0.00047123,60]
[398375694,1765559389220,-1350.51,0.00047123,120]
[398375696,1765559389270,-615.38,0.00047123,120]
[398375698,1765559389323,-1014.18,0.00047123,120]
[398375699,1765559389375,-731.22,0.00047123,120]
[398375701,1765559389429,-1750.24,0.00047123,120]
[398375703,1765559389484,-2037.28,0.00047123,120]
[398375705,1765559389532,-628.99,0.00047123,120]
[398375707,1765559389581,-3597.56,0.00047123,120]
[398375708,1765559389631,-502.64,0.00047123,120]
[398375710,1765559389681,-524.01,0.00047123,120]
[398375712,1765559389729,-517.94,0.00047123,120]
[398375714,1765559389779,-1244.67,0.00047123,120]
[398375716,1765559389826,-1075.08,0.00047123,120]
[398375717,1765559389878,-798.8,0.00047123,120]
[398375719,1765559389926,-1542.86,0.00047123,120]
[398375721,1765559389973,-1289.7,0.00047123,120]
[398375723,1765559390022,-500.0,0.00047123,120]
[398375725,1765559390069,-1597.54,0.00047123,120]
[398375726,1765559390119,-785.59,0.00047123,120]
[398375728,1765559390169,-500.0,0.00047123,120]
[398375729,1765559390219,-1700.73,0.00047123,120]
[398375730,1765559390271,-998.48,0.00047123,120]
[398375731,1765559390322,-500.0,0.00047123,120]
[398375732,1765559390376,-897.6,0.00047123,120]
[398375733,1765559390429,-664.6,0.00047123,120]
[398375734,1765559390485,-2274.16,0.00047123,120]
[398375736,1765559390536,-601.53,0.00047123,120]
[398375737,1765559390583,-700.93,0.00047123,120]
[398375739,1765559390639,-718.61,0.00047123,120]
[398375741,1765559390688,-337.58,0.0004725,120]
[398375743,1765559390737,-315.65,0.0004725,120]